Cogmind - Beta 14 @@@ ROGUE MODE // 2024.10.22 @ 16:34:47 Player: Lintence Result: Self-destructed Performance ------------- Evolutions (2) 1000 Regions Visited (4) 800 Robots Destroyed (57) 285 Value Destroyed (1069) 1069 Prototype IDs (3) 60 Alien Tech Used (0) 0 Bonus (28) 28 TOTAL SCORE: 3242 Bonus ------- High Alert Combat Kills 28 Cogmind --------- Core Integrity 521/550 Matter 174/300 Energy 2/100 System Corruption 4% Temperature Cool (4) Movement Flying (31) Location -8/Storage Parts ------- > --- POWER (1) -------- (None) > --- PROPULSION (6) --- Flight Unit Flight Unit Flight Unit Improved Flight Unit Xenon Bombardment Thruster Xenon Bombardment Thruster > --- UTILITY (2) ------ Medium Storage Unit System Shield > --- WEAPON (2) ------- High-powered Shotgun High-powered Shotgun > --- INVENTORY (10) --- Flight Unit Flight Unit Hacking Suite System Shield System Shield System Shield System Shield High-powered Shotgun Peak State ------------ > --- POWER ------------ Light Nuclear Core > --- PROPULSION ------- Flight Unit Improved Flight Unit Xenon Bombardment Thruster Xenon Bombardment Thruster Xenon Bombardment Thruster Xenon Bombardment Thruster > --- UTILITY ---------- Medium Storage Unit System Shield > --- WEAPON ----------- High-powered Shotgun High-powered Shotgun > --- INVENTORY -------- Light Nuclear Core Flight Unit Flight Unit Flight Unit Flight Unit Hacking Suite System Shield System Shield System Shield Pulse Rifle [Rating: 35] Favorites ----------- Power Light Nuclear Core Engine Light Ion Engine Power Core Light Nuclear Core Propulsion Wheel Leg Aluminum Leg Wheel Wheel Flight Unit Xenon Bombardment Thruster Utility Signal Interpreter Device Seismic Detector Storage Huge Storage Unit Processor Signal Interpreter Hackware System Shield Weapon EM Shotgun Energy Gun EM Shotgun Ballistic Gun Light Assault Rifle Launcher Grenade Launcher Build | -11 -10 -9 -8 -8 ------- Run | Yrd Mat Mat Mat Sto Slots Evolved 4 | . . 2 2 . Power . | . . . . . Propulsion 4 | . . 2 2 . Utility . | . . . . . Weapon . | . . . . . Parts Attached 58 | 7 5 27 16 3 Power 8 | 1 1 5 . 1 Engine 4 | 1 . 3 . . Core 4 | . 1 2 . 1 Reactor . | . . . . . Propulsion 26 | 2 1 12 9 2 Treads . | . . . . . Leg 3 | . . 2 1 . Wheel 14 | 2 1 10 1 . Hover . | . . . . . Flight 9 | . . . 7 2 Utility 7 | 2 3 . 2 . Device 1 | 1 . . . . Storage 4 | 1 2 . 1 . Processor 1 | . 1 . . . Hackware 1 | . . . 1 . Protection . | . . . . . Artifact . | . . . . . Weapon 17 | 2 . 10 5 . Energy Gun 7 | . . 6 1 . Energy Cannon . | . . . . . Ballistic Gun 8 | 2 . 2 4 . Ballistic Cannon . | . . . . . Launcher 2 | . . 2 . . Special Weapon . | . . . . . Impact Weapon . | . . . . . Slashing Weapon . | . . . . . Piercing Weapon . | . . . . . Special Melee Weapon . | . . . . . Unidentified Prototypes 1 | . . . 1 . Corrupted Parts 1 | . . 1 . . System Corruption 1 | . . 1 . . Parts Lost 17 | . . 13 . 4 Power 5 | . . 3 . 2 Propulsion 9 | . . 7 . 2 Utility . | . . . . . Weapon 3 | . . 3 . . Highest Loss Streak 5 | . . 5 . 3 To Critical Strikes . | . . . . . Average Slot Usage (%) 96 | . 100 93 96 95 Engine 1 | . 1 2 . . Core 9 | . 12 6 9 7 Leg 1 | . . 1 5 . Wheel 32 | . 28 39 31 . Flight 3 | . . . 13 52 Device 1 | . 5 . . . Storage 11 | . 14 11 9 9 Processor 9 | . 8 11 6 . Energy Gun 8 | . . 14 15 . Ballistic Gun 14 | . 28 6 2 18 Peak Build Rating 35 | 7 10 17 35 35 Average Rating 13 | 5 9 14 22 31 On Entrance 13 | . 7 10 16 35 Naked Turns . | . . . . . Heaviest Build 93 | 12 88 93 91 21 Greatest Support 68 | 20 20 52 68 33 Greatest Overweight (x) 8 | . 4 8 2 . Average Overweight (x) . | . . 1 . . Largest Inventory Capacity 25 | 8 25 25 25 10 Average Capacity 19 | 7 12 25 23 10 Most Carried 25 | 7 16 25 25 10 Average Carried 16 | 2 10 22 20 9 Final Capacity 25 | 8 25 25 10 10 Final Carried 24 | 7 16 24 10 8 Class Distribution -------------------- 48% | Scavenger-Mutant 47% | Mutant 4% | Sprinter Dominant Class ---------------- Mutant | -10/Materials Scavenger-Mutant | -9/Materials Scavenger-Mutant | -8/Materials Sprinter | -8/Storage Resources | -11 -10 -9 -8 -8 ----------- Run | Yrd Mat Mat Mat Sto Matter Collected 919 | 294 176 361 47 41 Remotely . | . . . . . Salvage Created 1687 | 121 441 1037 47 41 Parts 121 | 11 27 77 4 2 Haulers Intercepted 3 | . 1 . 1 1 Recyclers Shooed 2 | 1 1 . . . Parts Field Recycled . | . . . . . Retrieved Matter . | . . . . . Parts Self-Destructed . | . . . . . Prevented . | . . . . . Kills | -11 -10 -9 -8 -8 ------- Run | Yrd Mat Mat Mat Sto Combat Hostiles Destroyed 37 | . 9 28 . . Guns 24 | . 9 15 . . AOE 13 | . . 13 . . Classes Destroyed 10 | 2 6 2 . . Worker 3 | . 1 2 . . Builder 1 | . . 1 . . Tunneler 4 | 3 . 1 . . Hauler 3 | . 1 . 1 1 Recycler 4 | 1 1 2 . . Operator 3 | . 1 2 . . Watcher 2 | . 1 1 . . Swarmer 19 | . 3 16 . . Grunt 10 | . 6 4 . . Sentry 8 | . . 8 . . Best Kill Streak 6 | 4 5 6 1 1 Combat Bots Only 5 | . 3 5 . . Max Kills in Single Turn 3 | 1 2 3 1 1 Gunslinging 1 | . 1 . . . Exploded 3 | . . 3 . . Melee . | . . . . . Uniques/NPCs Destroyed . | . . . . . Combat | -11 -10 -9 -8 -8 -------- Run | Yrd Mat Mat Mat Sto Hostile Shots Fired 173 | . 35 108 . 30 Missed 53 | . 11 34 . 8 Damage Taken 1783 | . 258 1071 . 454 Core 340 | . 54 257 . 29 Absorbed by Shields . | . . . . . Regen/Repaired (Parts) 40 | . . 40 . . Core Remaining (%) 71 | 100 78 35 . . Volleys Fired 115 | 6 36 71 1 1 Largest 2 | 2 2 2 2 2 Hottest 90 | 40 40 90 68 50 Shots Fired 212 | 12 72 124 2 2 Gun 206 | 12 72 118 2 2 Cannon . | . . . . . Launcher 6 | . . 6 . . Special . | . . . . . Kinetic 115 | 12 72 28 1 2 Thermal 26 | . . 26 . . Explosive 6 | . . 6 . . Electromagnetic 65 | . . 64 1 . Robot Hit Streak 31 | 6 17 31 4 6 Robot Miss Streak 3 | 1 3 3 . . Penetration Max . | . . . . . Secondary Targets 2 | . 2 . . . Max Gunslinging Chain 1 | . 1 . . . Shots Hit Robots 151 | 9 47 92 2 1 Core Hits 90 | 5 24 58 2 1 Critical Kills 2 | . 2 . . . Critical Parts Destroyed . | . . . . . Critical Strikes 6 | . 2 4 . . Burn 4 | . . 4 . . Destroy 2 | . 2 . . . Melee Attacks . | . . . . . Impact . | . . . . . Slashing . | . . . . . Piercing . | . . . . . Sneak Attacks . | . . . . . Combat Hostiles . | . . . . . Follow-up Attacks . | . . . . . Damage Inflicted 2565 | 101 518 1898 30 18 Guns 1861 | 101 518 1194 30 18 Cannons . | . . . . . Explosions 698 | . . 698 . . Melee . | . . . . . Ramming 6 | . . 6 . . Kinetic 946 | 101 518 297 12 18 Thermal 667 | . . 667 . . Explosive 346 | . . 346 . . Electromagnetic 600 | . . 582 18 . Impact . | . . . . . Slashing . | . . . . . Piercing . | . . . . . Highest Corruption 4 | . . 1 4 4 Average Corruption 2 | . . 1 4 4 Corruption Purged . | . . . . . Corruption Blocked . | . . . . . Effects 8 | . . 1 5 2 Message Errors 2 | . . 1 . 1 Matter Fused 3 | . . . 2 1 Heat Flow Errors 2 | . . . 2 . Data Loss (major) 1 | . . . 1 . Overload Shots . | . . . . . Overflow Damage 40 | . . 40 . . Projectiles . | . . . . . Explosions 40 | . . 40 . . Melee . | . . . . . Knockbacks . | . . . . . Impact . | . . . . . Kinetic . | . . . . . Secondary . | . . . . . Self-Inflicted Damage 310 | . . 310 . . Shots 9 | . . 9 . . Rammed 1 | . . 1 . . Targets Rammed 1 | . . 1 . . Kicked . | . . . . . Crushed . | . . . . . Highest Temperature 352 | . 16 102 213 352 Average Temperature 71 | . 4 36 72 209 Received Heat Transfer 330 | . 84 156 . 90 Effects 3 | . . . . 3 Shutdowns 1 | . . . . 1 Interference 2 | . . . . 2 Siege Activations . | . . . . . Robots Corrupted . | . . . . . Combat Hostiles . | . . . . . Parts Fried . | . . . . . Impact Corruptions . | . . . . . Robots Melted . | . . . . . Combat Hostiles . | . . . . . Parts Melted 4 | . . 4 . . Heat Transferred 1610 | . . 1610 . . Parts Sabotaged . | . . . . . Parts Stolen . | . . . . . Parts Stripped . | . . . . . Power Chain Reactions 9 | . . 9 . . Alert | -11 -10 -9 -8 -8 ------- Run | Yrd Mat Mat Mat Sto Peak Influence 525 | 20 245 525 209 256 Initial 196 | . 13 57 196 87 Average 205 | 7 117 291 198 194 Maximum Alert Level 2 | . 1 2 1 1 Low Security (%) 55 | 100 78 34 58 38 Level 1 31 | . 21 36 41 61 Level 2 13 | . . 28 . . Level 3 . | . . . . . Level 4 . | . . . . . Level 5 . | . . . . . High Security . | . . . . . Max Security . | . . . . . Squads Dispatched 6 | . 2 3 . 1 Investigation 2 | . 1 1 . . Extermination . | . . . . . Reinforcement 3 | . 1 2 . . Assault 1 | . . . . 1 Garrison . | . . . . . Intercept . | . . . . . Searches Triggered . | . . . . . Construction Impeded . | . . . . . Haulers Reinforced . | . . . . . Active Scanning Responses . | . . . . . Cargo Convoy Interrupts . | . . . . . Stealth | -11 -10 -9 -8 -8 --------- Run | Yrd Mat Mat Mat Sto Distress Signals 8 | . 1 5 . 2 Communications Jammed . | . . . . . Distress Signals . | . . . . . Times Spotted 75 | . 16 42 1 16 Peak Tracking Total 12 | . 4 7 1 12 Tactical Retreats 7 | . . 4 . 3 Traps | -11 -10 -9 -8 -8 ------- Run | Yrd Mat Mat Mat Sto Traps Triggered 3 | . 2 . . 1 Indirectly . | . . . . . Trap Hack Attempts . | . . . . . Triggered . | . . . . . Disarmed . | . . . . . Reprogrammed . | . . . . . Reused . | . . . . . Traps Extracted . | . . . . . Installed . | . . . . . Triggered . | . . . . . Machines | -11 -10 -9 -8 -8 ---------- Run | Yrd Mat Mat Mat Sto Machines Disabled 3 | . . 3 . . Max in Single Turn 1 | . . 1 . . Garrison Access 1 | . . . . 1 Machines Repaired . | . . . . . Machines Dismantled . | . . . . . Machines Sabotaged . | . . . . . Overloaded Fab Kills . | . . . . . Hacking | -11 -10 -9 -8 -8 --------- Run | Yrd Mat Mat Mat Sto Machines Accessed 7 | . . 4 1 2 Terminals 5 | . . 3 1 1 Fabricators . | . . . . . Repair Stations 1 | . . 1 . . Recycling Units 1 | . . . . 1 Scanalyzers . | . . . . . Garrison Access . | . . . . . Total Hacks 20 | . . 14 3 3 Successful 11 | . . 7 1 3 Failed 9 | . . 7 2 . Catastrophic 1 | . . . 1 . Database Lockouts . | . . . . . Manual 5 | . . . 3 2 Terminals 15 | . . 11 3 1 Fabricators . | . . . . . Repair Stations 3 | . . 3 . . Recycling Units 2 | . . . . 2 Scanalyzers . | . . . . . Garrison Access . | . . . . . Terminal Hacks 7 | . . 5 1 1 Record 1 | . . 1 . . Prototype ID Bank 1 | . . 1 . . Unreport Threat 1 | . . 1 . . Hauler Manifests 3 | . . 1 1 1 Zone Layout 1 | . . 1 . . Fabricator Hacks . | . . . . . Repair Station Hacks 2 | . . 2 . . Scan Component 1 | . . 1 . . Repair 1 | . . 1 . . Recycling Unit Hacks 1 | . . . . 1 Report Inventory 1 | . . . . 1 Scanalyzer . | . . . . . Garrison Access Hacks . | . . . . . Unauthorized Hacks 1 | . . . . 1 Terminals . | . . . . . Fabricators . | . . . . . Repair Stations . | . . . . . Recycling Units 1 | . . . . 1 Monitor 1 | . . . . 1 Scanalyzers . | . . . . . Garrison Access . | . . . . . Data Cores Recovered . | . . . . . Used . | . . . . . Hacking Detections 3 | . . 3 . . Full Trace Events 2 | . . 2 . . Feedback Events . | . . . . . Feedback Blocked . | . . . . . Robot Schematics Acquired . | . . . . . Robots Built . | . . . . . Authchips . | . . . . . Time . | . . . . . Total Robot Build Rating . | . . . . . Part Schematics Acquired . | . . . . . Parts Built . | . . . . . Authchips . | . . . . . Time . | . . . . . Total Part Build Rating . | . . . . . Parts Repaired 1 | . . 1 . . Time 38 | . . 38 . . Parts Recycled . | . . . . . Recycled Matter . | . . . . . Retrieved Matter . | . . . . . Retrieved Components . | . . . . . Parts Scanalyzed . | . . . . . Part Schematics Acquired . | . . . . . Parts Damaged . | . . . . . Bothacking | -11 -10 -9 -8 -8 ------------ Run | Yrd Mat Mat Mat Sto Used RIF Installer . | . . . . . Robots Hacked . | . . . . . Non-combat . | . . . . . Combat . | . . . . . Robot Hacks Applied . | . . . . . Relay Couplers Released 1 | . . . . 1 Machine Destruction 1 | . . . . 1 Fabnet Peak Effective % . | . . . . . Robots Rewired . | . . . . . Allies Hacked . | . . . . . Hacks Repelled . | . . . . . Allies | -11 -10 -9 -8 -8 -------- Run | Yrd Mat Mat Mat Sto Total Allies . | . . . . . Largest Group . | . . . . . Highest-Rated Group . | . . . . . Highest-Rated Ally . | . . . . . Total Orders . | . . . . . Ally Attacks . | . . . . . Total Damage . | . . . . . Kills . | . . . . . Allies Corrupted . | . . . . . Allies Melted . | . . . . . Intel | -11 -10 -9 -8 -8 ------- Run | Yrd Mat Mat Mat Sto Robot Analysis Total . | . . . . . Derelict Logs Recovered . | . . . . . Drone Launches . | . . . . . Drone Recoveries . | . . . . . Exploration | -11 -10 -9 -8 -8 ------------- Run | Yrd Mat Mat Mat Sto Turns Passed 2054 | 81 717 962 208 86 Spaces Moved 1625 | 60 609 547 173 236 Core 2 | 2 . . . . Treads . | . . . . . Legs 9 | . . 9 . . Wheels 1329 | 58 609 538 124 . Hover . | . . . . . Flight 285 | . . . 49 236 Fastest Speed 25 | 50 80 100 25 25 Average Speed 88 | 79 90 111 95 26 Slowest Speed 680 | 80 140 680 181 31 Overloaded Moves . | . . . . . Propulsion Burnouts . | . . . . . Robots Hopped 6 | . . . . 6 Cave-ins Triggered . | . . . . . Exploration Rate (%) 35 | 3 68 53 16 39 Regions Visited 4 Branch Regions 1 Pre-discovered Areas . | . . . . . Known Exits Taken 3 | . 1 1 1 . Unknown Exits Taken 1 | 1 . . . . Scrap Searched . | . . . . . Spaces Dug . | . . . . . Terrain Destroyed 62 | . . 62 . . Melee . | . . . . . Projectile . | . . . . . AOE 62 | . . 62 . . Terrain Rammed . | . . . . . Walls Destroyed . | . . . . . Machines Disabled . | . . . . . Actions | -11 -10 -9 -8 -8 --------- Run | Yrd Mat Mat Mat Sto Total 2041 | 79 712 774 224 252 Wait 146 | . 40 91 . 15 Move 1612 | 59 608 546 172 227 Hop 3 | . . . . 3 Pick Up 56 | 7 14 24 9 2 Fast Attach 20 | 7 1 9 3 . Attach 23 | . . 10 10 3 Detach 6 | . . 3 3 . Swap 15 | . 4 8 3 . Drop 44 | . 9 11 23 1 Fire 115 | 6 36 71 1 1 Melee . | . . . . . Ram 1 | . . 1 . . Kick . | . . . . . Crush . | . . . . . Escape Stasis . | . . . . . Rewire . | . . . . . Trap . | . . . . . Miscellaneous . | . . . . . Route ------- -11/Scrapyard -10/Materials (discovered 4 exits: *Mat x2 / [*Min x2]) -9/Materials (discovered 3 exits: *Mat / [*Min x2]) -8/Materials -8/Storage History --------- Turn | Location | Event 48 | -11/Scrapyard | Discovered new exit (range 15) 82 | -11/Scrapyard | Entered Materials 226 | -10/Materials | Discovered new exit (range 16) 307 | -10/Materials | Build established: Mutant 625 | -10/Materials | Discovered new exit (range 13) 701 | -10/Materials | Discovered new exit (range 6) 780 | -10/Materials | Discovered new exit (range 3) 787 | -10/Materials | Identified exit to Materials 799 | -10/Materials | Entered another Materials area 799 | -9/Materials | Evolved 2 slots: Propulsion x2 848 | -9/Materials | Repaired Lgt. Nuclear Core 1159 | -9/Materials | Build established: Scavenger-Mutant 1160 | -9/Materials | Discovered new exit (range 8) 1247 | -9/Materials | Lost 3 parts (1p2n) 1320 | -9/Materials | Lost 3 parts (1p2n) 1369 | -9/Materials | Core integrity fell below 50% 1411 | -9/Materials | Lost 5 parts (1p2n2w) 1644 | -9/Materials | Discovered new exit (range 16) 1741 | -9/Materials | Discovered new exit (range 15) 1760 | -9/Materials | Identified exit to Materials 1761 | -9/Materials | Entered another Materials area 1761 | -8/Materials | Evolved 2 slots: Propulsion x2 1859 | -8/Materials | Discovered new exit (range 11) 1892 | -8/Materials | Identified exit to Storage 1969 | -8/Materials | Entered Storage 2055 | -8/Storage | Self-destructed Last Messages --------------- 02015_ S-10 Pest unfolds itself. 02018_ Xenon Bombardment Thruster destroyed. 02019_ Overheating: System interference. 02019_ Hpw. Shotgun temporarily disabled. 02021_ Power failure, Lgt. Nuclear Core shutdown. 02023_ Overheating: System interference. 02023_ Hpw. Shotgun temporarily disabled. 02032_ Critical hit (Burn: +37). 02032_ C-30 ARC bursts open, deploying its payload. 02032_ G-50 Soldier unfolds itself. 02032_ B-36 Bruiser unfolds itself. 02032_ L-31 Rogue unfolds itself. 02032_ I-25 Savior unfolds itself. [Achievement: Cya!] 02033_ Lgt. Nuclear Core destroyed. 02033_ Xenon Bombardment Thruster destroyed. 02040_ K-01 Serf cleans the Terminal. 02044_ W-25 Informer sends out distress signal. Map ----- +----------------------------------------------------+ | ?????????????????????????# # # " | | ?????????????????????????############### " # " | | ?????????????????????????????# ##### # " | | ?????????????????????????????# " + | | ?????????????????????????????# "%" ### # " | | ?????????????????????????????# ##### #?# # " | | ?????????????????????????????## #############+# " | | ??????????????????????????????# # # " | | ?????????????????????#????????# + """ """ """ # | | ?????????????????????# ######?# # """ """ """ # | | ?????????????????????" # ] ### # """ """ """ # # | | ?????????????????????# + #? ### | | ?????????????????????### T #? ] ?? | | ???????????????????????# sll######??#############? | | ???????????????????????## g##????????????????????? | | ????????????????????????# #?????????????????????? | | ????????????????????????# w###???????????????????? | | ????????????????????????# + "???????????????????? | | ????????????????????????# #T#???????????????????? | | ????????????????????????# ###???????????????????? | | ????????????????????????# a#?????????????????????? | | ????????????????????????# #?????????????????????? | | ????????????????????????# #?????????????????????? | | ???????????????????????## ##????????????????????? | | ??????????????????###### #????????????????????? | | ??????????????????+ r @ #????????????????????? | | ??????????????????# #????????????????????? | | ??????????????????## #????????????????????? | | ???????????????????# """ #????????????????????? | | ???????????????????# """ #????????????????????? | | ???????????????????# """ #????????????????????? | | ???????????????????# "#????????????????????? | | ???????????????????# T#????????????????????? | | ???????????????????#?? "#????????????????????? | | ???????????????????????? ????????????????????? | | ??????????????????????? ?????????????????????? | | ???????????????????????? ?????????????????????? | | ????????????????????????####?????????????????????? | | ?????????????????????????????????????????????????? | | ?????????????????????????????????????????????????? | | ?????????????????????????????????????????????????? | | ?????????????????????????????????????????????????? | | ?????????????????????????????????????????????????? | | ?????????????????????????????????????????????????? | | ?????????????????????????????????????????????????? | | ?????????????????????????????????????????????????? | | ?????????????????????????????????????????????????? | | | | | | | +----------------------------------------------------+ Best States ------------- Heat Dissipation 31 Energy Generation 14 Energy Capacity 265 Matter Stores 300 Matter Capacity 300 Sight Range 16 Terrain Scan Density 10 Evasion (%) 65 Defensive Hacking 10 Item Schematics ----------------- None Robot Schematics ------------------ None Fabricated ------------ Nothing Alien Tech Used ----------------- None Achievements -------------- Cya! Challenges ------------ None Game ------ Seed AlloyRocketClaws Manual? 0 Play Time 00:29:45 Cumulative 43.5 hours Start 2024.10.22 @ 16:06:32 End 2024.10.22 @ 16:34:47 Sessions 1 Manual Loads 0 Difficulty Rogue Special Mode None Game No. 83 Rogue 83 Adventurer 0 Explorer 0 Win Type - Total 1 Types 1/0/0/0/0/0/0/0/0 Lore% 15 Gallery% 33 Achievement% 26 Wizard Run 0 Options --------- Layout 1 ASCII 0 Keyboard 0 Movement Mouse Keybinds 0 Fullscreen 1 Font 20/X11 Map View 50x35 Zoom Use 0% Tactical HUD 1 Map Filters NONE Filters NONE Steam 1 RUN: 34eecb73-4ac3-4789-910d-77f9a3e237b7